[Event "Live Chess"]
[Site "Chess.com"]
[Date "2023.05.20"]
[Round "-"]
[White "Ra2orLeaf"]
[Black "BearFromUkraine"]
[Result "1-0"]
[WhiteElo "1142"]
[BlackElo "1092"]
[TimeControl "300"]
[EndTime "10:20:33 PDT"]
[Termination "Ra2orLeaf won on time"]

1. c4 {[%clk 0:04:58.4]} 1... e5 {[%clk 0:04:57.6]} 2. Nc3 {[%clk 0:04:57.9]}
2... Nf6 {[%clk 0:04:55.4]} 3. e3 {[%clk 0:04:57.4]} 3... Be7 {[%clk 0:04:49.7]}
4. Nf3 {[%clk 0:04:55.9]} 4... Nc6 {[%clk 0:04:47.5]} 5. d4 {[%clk 0:04:55.3]}
5... exd4 {[%clk 0:04:45.5]} 6. exd4 {[%clk 0:04:55.2]} 6... Bb4 {[%clk
0:04:38.6]} 7. Bd2 {[%clk 0:04:51.1]} 7... O-O {[%clk 0:04:36]} 8. Bd3 {[%clk
0:04:46.7]} 8... Re8+ {[%clk 0:04:31]} 9. Ne2 {[%clk 0:04:29.8]} 9... Bxd2+
{[%clk 0:04:26.1]} 10. Qxd2 {[%clk 0:04:29.7]} 10... Qe7 {[%clk 0:04:19.8]} 11.
O-O {[%clk 0:04:26.5]} 11... d6 {[%clk 0:04:15.2]} 12. d5 {[%clk 0:04:22.7]}
12... Ne5 {[%clk 0:04:10.5]} 13. Nxe5 {[%clk 0:04:17.7]} 13... Qxe5 {[%clk
0:04:08.8]} 14. Rfe1 {[%clk 0:04:13.7]} 14... Bd7 {[%clk 0:03:03.5]} 15. Nf4
{[%clk 0:04:10.5]} 15... Qg5 {[%clk 0:02:12.1]} 16. g3 {[%clk 0:03:20]} 16...
Nh5 {[%clk 0:02:01.8]} 17. Kh1 {[%clk 0:03:03.5]} 17... Nxf4 {[%clk 0:01:59.3]}
18. Qxf4 {[%clk 0:02:54.4]} 18... Qxf4 {[%clk 0:01:58.3]} 19. gxf4 {[%clk
0:02:54.3]} 19... Rxe1+ {[%clk 0:01:51.5]} 20. Rxe1 {[%clk 0:02:53]} 20... Re8
{[%clk 0:01:51.1]} 21. Rxe8+ {[%clk 0:02:51.4]} 21... Bxe8 {[%clk 0:01:50.3]}
22. Kg2 {[%clk 0:02:50.4]} 22... g6 {[%clk 0:01:45]} 23. b3 {[%clk 0:02:49.8]}
23... Kg7 {[%clk 0:01:43.6]} 24. Kg3 {[%clk 0:02:49.2]} 24... Kf6 {[%clk
0:01:43]} 25. Kg4 {[%clk 0:02:48.8]} 25... c6 {[%clk 0:01:38.4]} 26. h4 {[%clk
0:02:47.6]} 26... cxd5 {[%clk 0:01:36.4]} 27. cxd5 {[%clk 0:02:45.4]} 27... Bd7+
{[%clk 0:01:34.1]} 28. Kf3 {[%clk 0:02:40.6]} 28... Bf5 {[%clk 0:01:33.3]} 29.
Bxf5 {[%clk 0:02:37.8]} 29... Kxf5 {[%clk 0:01:32.7]} 30. a4 {[%clk 0:02:34.7]}
30... h5 {[%clk 0:01:25.4]} 31. b4 {[%clk 0:02:33.2]} 31... f6 {[%clk
0:01:12.8]} 32. b5 {[%clk 0:02:31.3]} 32... b6 {[%clk 0:01:08.4]} 33. Ke3 {[%clk
0:02:02.7]} 33... Kg4 {[%clk 0:01:05.9]} 34. Ke4 {[%clk 0:02:00.1]} 34... Kxh4
{[%clk 0:01:03]} 35. f3 {[%clk 0:01:59.6]} 35... Kg3 {[%clk 0:01:01.4]} 36. f5
{[%clk 0:01:56.2]} 36... gxf5+ {[%clk 0:00:59.3]} 37. Kxf5 {[%clk 0:01:56.1]}
37... h4 {[%clk 0:00:58.6]} 38. Ke6 {[%clk 0:01:53.6]} 38... h3 {[%clk
0:00:57.4]} 39. Kxd6 {[%clk 0:01:53.1]} 39... h2 {[%clk 0:00:56.9]} 40. Kc7
{[%clk 0:01:52.8]} 40... h1=Q {[%clk 0:00:56.2]} 41. d6 {[%clk 0:01:52.7]} 41...
Qxf3 {[%clk 0:00:53.8]} 42. d7 {[%clk 0:01:52.3]} 42... Qc3+ {[%clk 0:00:51.1]}
43. Kd8 {[%clk 0:01:51.2]} 43... Qd4 {[%clk 0:00:47.7]} 44. Ke8 {[%clk
0:01:49.9]} 44... Qe5+ {[%clk 0:00:46.6]} 45. Kd8 {[%clk 0:01:49.1]} 45... Qd6
{[%clk 0:00:45.2]} 46. Kc8 {[%clk 0:01:47.7]} 46... Qc5+ {[%clk 0:00:40.1]} 47.
Kb7 {[%clk 0:01:41.2]} 47... Qd5+ {[%clk 0:00:28.9]} 48. Kc8 {[%clk 0:01:39.5]}
48... f5 {[%clk 0:00:25.1]} 49. d8=Q {[%clk 0:01:38.3]} 49... Qxd8+ {[%clk
0:00:24.3]} 50. Kxd8 {[%clk 0:01:38.2]} 50... f4 {[%clk 0:00:23.9]} 51. Kc7
{[%clk 0:01:38.1]} 51... f3 {[%clk 0:00:23.4]} 52. Kb7 {[%clk 0:01:38]} 52... f2
{[%clk 0:00:23]} 53. Kxa7 {[%clk 0:01:37.9]} 53... f1=Q {[%clk 0:00:22.1]} 54.
Kxb6 {[%clk 0:01:37.4]} 54... Qf6+ {[%clk 0:00:18.9]} 55. Ka5 {[%clk 0:01:35.1]}
55... Qe5 {[%clk 0:00:17.3]} 56. Ka6 {[%clk 0:01:33.8]} 56... Qd6+ {[%clk
0:00:16.3]} 57. b6 {[%clk 0:01:33.2]} 57... Qd3+ {[%clk 0:00:13.9]} 58. Ka7
{[%clk 0:01:31.1]} 58... Qa3 {[%clk 0:00:11.6]} 59. b7 {[%clk 0:01:27.3]} 59...
Qxa4+ {[%clk 0:00:10.8]} 60. Kb8 {[%clk 0:01:27.2]} 60... Qb5 {[%clk 0:00:09.3]}
61. Ka8 {[%clk 0:01:26.1]} 61... Qa6+ {[%clk 0:00:07.9]} 62. Kb8 {[%clk
0:01:25.1]} 62... Kf4 {[%clk 0:00:06.4]} 63. Kc8 {[%clk 0:01:24.2]} 63... Qc6+
{[%clk 0:00:05.4]} 64. Kb8 {[%clk 0:01:23]} 64... Ke5 {[%clk 0:00:05]} 65. Ka8
{[%clk 0:01:21.9]} 65... Qa6+ {[%clk 0:00:04.2]} 66. Kb8 {[%clk 0:01:21.1]}
66... Qb6 {[%clk 0:00:03.2]} 67. Ka8 {[%clk 0:01:19.6]} 67... Qa6+ {[%clk
0:00:02.6]} 68. Kb8 {[%clk 0:01:19]} 68... Kd6 {[%clk 0:00:02]} 69. Kc8 {[%clk
0:01:17.3]} 69... Qc6+ {[%clk 0:00:01.1]} 70. Kb8 {[%clk 0:01:14]} 70... Qb6
{[%clk 0:00:00.2]} 71. Kc8 {[%clk 0:01:11.3]} 1-0

[Event "Live Chess"]
[Site "Chess.com"]
[Date "2023.05.20"]
[Round "-"]
[White "matt1979"]
[Black "JanMur7"]
[Result "0-1"]
[WhiteElo "1484"]
[BlackElo "1982"]
[TimeControl "300"]
[EndTime "10:20:41 PDT"]
[Termination "JanMur7 won by resignation"]

1. f4 {[%clk 0:04:58.5]} 1... e5 {[%clk 0:04:58.9]} 2. fxe5 {[%clk 0:04:57.2]}
2... d6 {[%clk 0:04:58]} 3. exd6 {[%clk 0:04:56.4]} 3... Bxd6 {[%clk 0:04:57.9]}
4. Nf3 {[%clk 0:04:55.1]} 4... g5 {[%clk 0:04:56.7]} 5. g3 {[%clk 0:04:53.9]}
5... Nc6 {[%clk 0:04:51.8]} 6. e4 {[%clk 0:04:49.7]} 6... h5 {[%clk 0:04:43.8]}
7. Bb5 {[%clk 0:04:43.4]} 7... h4 {[%clk 0:04:26.7]} 8. Bxc6+ {[%clk 0:04:40.6]}
8... bxc6 {[%clk 0:04:24.5]} 9. Rg1 {[%clk 0:04:24.7]} 9... hxg3 {[%clk
0:04:05]} 10. hxg3 {[%clk 0:04:22.6]} 10... Bg4 {[%clk 0:03:59]} 11. d4 {[%clk
0:04:12.7]} 11... Qf6 {[%clk 0:03:51.8]} 12. Nbd2 {[%clk 0:04:04.4]} 12... Bxg3+
{[%clk 0:03:13]} 13. Rxg3 {[%clk 0:03:54.9]} 13... Rh1+ {[%clk 0:03:10.6]} 14.
Kf2 {[%clk 0:03:30.3]} 14... Rxd1 {[%clk 0:03:06.9]} 15. Rxg4 {[%clk 0:03:29.3]}
15... Nh6 {[%clk 0:03:02.9]} 16. Rxg5 {[%clk 0:03:25.9]} 16... Kd7 {[%clk
0:02:46.2]} 17. Ke2 {[%clk 0:03:13.2]} 17... Rh1 {[%clk 0:02:43.1]} 18. Nf1
{[%clk 0:03:04.7]} 18... Rxf1 {[%clk 0:02:35.3]} 19. Kxf1 {[%clk 0:03:01.9]}
19... Qxf3+ {[%clk 0:02:33.4]} 0-1

[Event "Live Chess"]
[Site "Chess.com"]
[Date "2023.05.20"]
[Round "-"]
[White "Horseymobile"]
[Black "profpirate4"]
[Result "0-1"]
[WhiteElo "1218"]
[BlackElo "1017"]
[TimeControl "300"]
[EndTime "10:20:44 PDT"]
[Termination "profpirate4 won by resignation"]

1. d4 {[%clk 0:04:57.2]} 1... f5 {[%clk 0:04:58.7]} 2. c4 {[%clk 0:04:54.7]}
2... e6 {[%clk 0:04:57.8]} 3. Nc3 {[%clk 0:04:54]} 3... Nf6 {[%clk 0:04:57]} 4.
Bg5 {[%clk 0:04:51.7]} 4... Be7 {[%clk 0:04:54.8]} 5. Nf3 {[%clk 0:04:48.6]}
5... O-O {[%clk 0:04:53.3]} 6. e3 {[%clk 0:04:48.1]} 6... Ne4 {[%clk 0:04:52.2]}
7. Bxe7 {[%clk 0:04:45.8]} 7... Qxe7 {[%clk 0:04:51.2]} 8. Bd3 {[%clk
0:04:43.5]} 8... Nxc3 {[%clk 0:04:46.5]} 9. bxc3 {[%clk 0:04:43.4]} 9... d6
{[%clk 0:04:44.1]} 10. O-O {[%clk 0:04:41.8]} 10... Nd7 {[%clk 0:04:42.9]} 11.
e4 {[%clk 0:04:28.4]} 11... fxe4 {[%clk 0:04:40.7]} 12. Bxe4 {[%clk 0:04:28.3]}
12... Nf6 {[%clk 0:04:37.3]} 13. Re1 {[%clk 0:04:24.5]} 13... c6 {[%clk
0:04:31.1]} 14. Qc2 {[%clk 0:04:16.6]} 14... d5 {[%clk 0:04:27.9]} 15. cxd5
{[%clk 0:04:14.6]} 15... cxd5 {[%clk 0:04:26.8]} 16. Bf5 {[%clk 0:04:06.6]}
16... Qe8 {[%clk 0:04:20.3]} 17. Bh3 {[%clk 0:04:04.1]} 17... Ne4 {[%clk
0:04:12.3]} 18. Ne5 {[%clk 0:03:59.6]} 18... Bd7 {[%clk 0:03:50.9]} 19. f3
{[%clk 0:03:55.2]} 19... Ng5 {[%clk 0:03:48.1]} 20. Bg4 {[%clk 0:03:50.1]} 20...
Bc8 {[%clk 0:03:34.1]} 21. Qf2 {[%clk 0:03:28.7]} 21... Rf4 {[%clk 0:03:24]} 22.
Qg3 {[%clk 0:03:06.8]} 22... Qf8 {[%clk 0:03:10]} 23. h4 {[%clk 0:02:44.8]}
23... Nf7 {[%clk 0:03:06.2]} 24. Nd3 {[%clk 0:02:36.5]} 24... Rf6 {[%clk
0:02:50.3]} 25. Re2 {[%clk 0:02:24.8]} 25... Nh6 {[%clk 0:02:43.1]} 26. Bh3
{[%clk 0:02:10]} 26... Rg6 {[%clk 0:02:37.8]} 27. Qd6 {[%clk 0:02:00.7]} 27...
Qxd6 {[%clk 0:02:29.9]} 0-1

[Event "Live Chess"]
[Site "Chess.com"]
[Date "2023.05.20"]
[Round "-"]
[White "jennybobby44"]
[Black "ReeceHockton"]
[Result "1-0"]
[WhiteElo "1841"]
[BlackElo "331"]
[TimeControl "300"]
[EndTime "10:20:46 PDT"]
[Termination "jennybobby44 won by resignation"]

1. Nf3 {[%clk 0:04:59.3]} 1... e6 {[%clk 0:04:51.2]} 2. d4 {[%clk 0:04:57.9]}
2... b5 {[%clk 0:04:49.8]} 3. e4 {[%clk 0:04:56.7]} 3... Nc6 {[%clk 0:04:48.9]}
4. Bxb5 {[%clk 0:04:55.3]} 4... d5 {[%clk 0:04:46.6]} 5. e5 {[%clk 0:04:52.9]}
5... Qd6 {[%clk 0:04:45.9]} 6. exd6 {[%clk 0:04:51.4]} 6... cxd6 {[%clk
0:04:45.6]} 7. Bxc6+ {[%clk 0:04:50.5]} 7... Kd8 {[%clk 0:04:42.8]} 8. Bxa8
{[%clk 0:04:50]} 8... Ne7 {[%clk 0:03:39.9]} 9. c4 {[%clk 0:04:48.3]} 9... dxc4
{[%clk 0:03:36.2]} 10. O-O {[%clk 0:04:47.2]} 10... Ba6 {[%clk 0:03:35.2]} 11.
Re1 {[%clk 0:04:44.5]} 11... Nf5 {[%clk 0:03:32.8]} 12. Qa4 {[%clk 0:04:42.1]}
12... Nxd4 {[%clk 0:03:27.9]} 13. Qxa6 {[%clk 0:04:39.3]} 1-0

[Event "Live Chess"]
[Site "Chess.com"]
[Date "2023.05.20"]
[Round "-"]
[White "TDCMF"]
[Black "Greenbecker"]
[Result "0-1"]
[WhiteElo "340"]
[BlackElo "1667"]
[TimeControl "300"]
[EndTime "10:20:48 PDT"]
[Termination "Greenbecker won on time"]

1. e4 {[%clk 0:04:58.1]} 1... e6 {[%clk 0:04:59.2]} 2. d4 {[%clk 0:04:56.6]}
2... d5 {[%clk 0:04:58.7]} 3. e5 {[%clk 0:04:56.1]} 3... c5 {[%clk 0:04:57.3]}
4. Nf3 {[%clk 0:04:54.4]} 4... cxd4 {[%clk 0:04:56.1]} 5. Nxd4 {[%clk
0:04:53.5]} 5... Nc6 {[%clk 0:04:55.3]} 6. Be3 {[%clk 0:04:45.3]} 6... Nxe5
{[%clk 0:04:49.6]} 7. Bb5+ {[%clk 0:04:29.7]} 7... Bd7 {[%clk 0:04:48.2]} 8. O-O
{[%clk 0:04:23.1]} 8... Bxb5 {[%clk 0:04:41.8]} 9. Nxb5 {[%clk 0:04:21.1]} 9...
a6 {[%clk 0:04:38.5]} 10. Nd4 {[%clk 0:04:05.6]} 10... Nf6 {[%clk 0:04:36.5]}
11. Nc3 {[%clk 0:03:51.8]} 11... Bd6 {[%clk 0:04:32.9]} 12. Bf4 {[%clk
0:03:33.9]} 12... Ng6 {[%clk 0:04:26.4]} 13. Bxd6 {[%clk 0:03:20.1]} 13... Qxd6
{[%clk 0:04:25.1]} 14. h3 {[%clk 0:03:07.1]} 14... O-O {[%clk 0:04:22.9]} 15.
Qe2 {[%clk 0:02:42.4]} 15... Rac8 {[%clk 0:04:18.3]} 16. Rfe1 {[%clk 0:02:33.6]}
16... Rfe8 {[%clk 0:04:16.6]} 17. a3 {[%clk 0:02:24.2]} 17... Nf4 {[%clk
0:04:02.9]} 18. Qe3 {[%clk 0:01:59]} 18... Ng6 {[%clk 0:03:54.3]} 19. b4 {[%clk
0:01:55.8]} 19... Qf4 {[%clk 0:03:50.2]} 20. Qxf4 {[%clk 0:01:44.3]} 20... Nxf4
{[%clk 0:03:48.7]} 21. Nce2 {[%clk 0:01:36.3]} 21... Nxe2+ {[%clk 0:03:44.9]}
22. Rxe2 {[%clk 0:01:35.5]} 22... Rc3 {[%clk 0:03:39.8]} 23. b5 {[%clk
0:01:27.9]} 23... a5 {[%clk 0:03:33.5]} 24. b6 {[%clk 0:01:23.1]} 24... Rec8
{[%clk 0:03:30.7]} 25. Rb1 {[%clk 0:01:12.2]} 25... Rxa3 {[%clk 0:03:24.3]} 26.
Nb5 {[%clk 0:01:10.1]} 26... Ra2 {[%clk 0:03:13.1]} 27. Nd6 {[%clk 0:01:01.2]}
27... Rb8 {[%clk 0:03:01.6]} 28. Nxb7 {[%clk 0:00:55.5]} 28... Rxb7 {[%clk
0:02:59.2]} 29. Re3 {[%clk 0:00:48.1]} 29... Rxc2 {[%clk 0:02:50.1]} 30. Reb3
{[%clk 0:00:42.3]} 30... h6 {[%clk 0:02:43.6]} 31. Rb5 {[%clk 0:00:40.5]} 31...
Rc6 {[%clk 0:02:38.7]} 32. Rxa5 {[%clk 0:00:36.5]} 32... Rcxb6 {[%clk
0:02:37.7]} 33. Ra8+ {[%clk 0:00:32.7]} 33... Kh7 {[%clk 0:02:35.7]} 34. Rc8
{[%clk 0:00:17.5]} 34... Rxb1+ {[%clk 0:02:33.7]} 35. Rc1 {[%clk 0:00:15.6]}
35... Rxc1+ {[%clk 0:02:32.5]} 36. Kh2 {[%clk 0:00:14.8]} 36... Rbb1 {[%clk
0:02:30.5]} 37. Kg3 {[%clk 0:00:12.9]} 37... d4 {[%clk 0:02:27.1]} 38. Kf3
{[%clk 0:00:11.1]} 38... d3 {[%clk 0:02:25.9]} 39. Ke3 {[%clk 0:00:10.1]} 39...
Rd1 {[%clk 0:02:24.2]} 40. f3 {[%clk 0:00:08.2]} 40... Nd5+ {[%clk 0:02:23]} 41.
Kd4 {[%clk 0:00:06.7]} 41... d2 {[%clk 0:02:21]} 42. g4 {[%clk 0:00:05]} 42...
Re1 {[%clk 0:02:19.4]} 43. f4 {[%clk 0:00:03]} 43... d1=R+ {[%clk 0:02:16.9]}
44. Kc5 {[%clk 0:00:02.3]} 44... Rbc1+ {[%clk 0:02:15.6]} 45. Kd6 {[%clk
0:00:01.7]} 45... Nb6+ {[%clk 0:02:13.6]} 46. Ke7 {[%clk 0:00:00.9]} 46... Rd7+
{[%clk 0:02:10.1]} 0-1

[Event "Live Chess"]
[Site "Chess.com"]
[Date "2023.05.20"]
[Round "-"]
[White "TobyQuaite"]
[Black "Ninifu"]
[Result "0-1"]
[WhiteElo "1701"]
[BlackElo "1984"]
[TimeControl "300"]
[EndTime "10:20:50 PDT"]
[Termination "Ninifu won by resignation"]

1. e4 {[%clk 0:04:59]} 1... d5 {[%clk 0:04:58.4]} 2. exd5 {[%clk 0:04:56.7]}
2... Nf6 {[%clk 0:04:57.3]} 3. Nf3 {[%clk 0:04:53.3]} 3... Bg4 {[%clk
0:04:55.1]} 4. Be2 {[%clk 0:04:51.9]} 4... Qxd5 {[%clk 0:04:53.5]} 5. h3 {[%clk
0:04:49.6]} 5... Bh5 {[%clk 0:04:49.1]} 6. Nc3 {[%clk 0:04:48.9]} 6... Qd7
{[%clk 0:04:33]} 7. Ne5 {[%clk 0:04:37.1]} 7... Bxe2 {[%clk 0:04:30.4]} 8. Qxe2
{[%clk 0:04:34.7]} 8... Qe6 {[%clk 0:04:01.7]} 9. d4 {[%clk 0:04:18.4]} 9... Nc6
{[%clk 0:03:42.6]} 10. Nb5 {[%clk 0:04:13.9]} 10... O-O-O {[%clk 0:03:25.4]} 11.
Nxc6 {[%clk 0:04:09.5]} 11... Qxe2+ {[%clk 0:03:20]} 12. Kxe2 {[%clk 0:04:08.1]}
12... bxc6 {[%clk 0:03:19.3]} 13. Nc3 {[%clk 0:03:24.6]} 13... e6 {[%clk
0:03:04.7]} 14. Bg5 {[%clk 0:03:18.5]} 14... Be7 {[%clk 0:03:03]} 15. Rad1
{[%clk 0:03:15.9]} 15... h6 {[%clk 0:03:00.6]} 16. Bh4 {[%clk 0:03:07.9]} 16...
g5 {[%clk 0:02:52.9]} 17. Bg3 {[%clk 0:03:06.8]} 17... Nd5 {[%clk 0:02:50.3]}
18. Rd3 {[%clk 0:02:32.2]} 18... Bd6 {[%clk 0:02:19.5]} 19. Bxd6 {[%clk
0:02:19.3]} 19... cxd6 {[%clk 0:02:04.7]} 20. Ne4 {[%clk 0:02:09.5]} 20... f5
{[%clk 0:01:55.6]} 21. Ng3 {[%clk 0:02:00.5]} 21... Nf4+ {[%clk 0:01:54]} 0-1

[Event "Live Chess"]
[Site "Chess.com"]
[Date "2023.05.20"]
[Round "-"]
[White "BogdanBeleiUkraine"]
[Black "MarkLim1"]
[Result "0-1"]
[WhiteElo "1241"]
[BlackElo "1630"]
[TimeControl "300"]
[EndTime "10:20:51 PDT"]
[Termination "MarkLim1 won by resignation"]

1. e4 {[%clk 0:04:58.6]} 1... c6 {[%clk 0:04:57.9]} 2. Nc3 {[%clk 0:04:57.5]}
2... d5 {[%clk 0:04:57.3]} 3. exd5 {[%clk 0:04:55.3]} 3... cxd5 {[%clk
0:04:56.6]} 4. Bb5+ {[%clk 0:04:53]} 4... Nc6 {[%clk 0:04:54.7]} 5. Nge2 {[%clk
0:04:50.1]} 5... Bg4 {[%clk 0:04:52.6]} 6. h3 {[%clk 0:04:47.5]} 6... Bh5 {[%clk
0:04:51.7]} 7. O-O {[%clk 0:04:39.8]} 7... Nf6 {[%clk 0:04:50.2]} 8. Qe1 {[%clk
0:04:37.5]} 8... a6 {[%clk 0:04:49.1]} 9. Ba4 {[%clk 0:04:33]} 9... e6 {[%clk
0:04:47.1]} 10. d3 {[%clk 0:04:27.8]} 10... Bd6 {[%clk 0:04:45.9]} 11. Ng3
{[%clk 0:04:23.3]} 11... Bg6 {[%clk 0:04:44.7]} 12. f4 {[%clk 0:04:15.3]} 12...
O-O {[%clk 0:04:42.6]} 13. f5 {[%clk 0:04:11.6]} 13... exf5 {[%clk 0:04:41.6]}
14. Nxf5 {[%clk 0:04:09.9]} 14... Bc5+ {[%clk 0:04:36.8]} 15. d4 {[%clk
0:04:00.1]} 15... Nxd4 {[%clk 0:04:31.3]} 16. Nxd4 {[%clk 0:03:54.7]} 16...
Bxd4+ {[%clk 0:04:30.3]} 17. Kh1 {[%clk 0:03:51.9]} 17... b5 {[%clk 0:04:24.6]}
18. Bb3 {[%clk 0:03:49.1]} 18... Rc8 {[%clk 0:04:21.8]} 19. Bg5 {[%clk
0:03:39.6]} 19... b4 {[%clk 0:04:19.2]} 20. Bxf6 {[%clk 0:03:35.6]} 20... Bxf6
{[%clk 0:04:15.5]} 21. Nxd5 {[%clk 0:03:29.3]} 21... Re8 {[%clk 0:04:05.5]} 22.
Qxb4 {[%clk 0:03:13.1]} 22... Bxb2 {[%clk 0:03:46.8]} 23. Rad1 {[%clk
0:03:00.5]} 23... Qh4 {[%clk 0:03:29.6]} 24. Nf4 {[%clk 0:02:48.9]} 24... Qf6
{[%clk 0:03:21.1]} 25. Nd5 {[%clk 0:02:38.9]} 25... Qg5 {[%clk 0:03:12.5]} 26.
Nb6 {[%clk 0:02:29.2]} 26... Rcd8 {[%clk 0:02:59.4]} 27. Nd5 {[%clk 0:02:19.4]}
27... Rb8 {[%clk 0:02:51.9]} 28. Qa5 {[%clk 0:02:11.4]} 28... Rb5 {[%clk
0:02:38.7]} 29. Qa4 {[%clk 0:02:04.8]} 29... Bxc2 {[%clk 0:02:27.5]} 30. Bxc2
{[%clk 0:01:56.5]} 30... Rd8 {[%clk 0:02:20.2]} 31. Nc7 {[%clk 0:01:47.3]} 31...
Rxd1 {[%clk 0:02:16.3]} 32. Rxd1 {[%clk 0:01:45.1]} 32... Rb8 {[%clk 0:02:15.8]}
33. Qxa6 {[%clk 0:01:36.7]} 33... Qg3 {[%clk 0:02:11.8]} 34. Qd3 {[%clk
0:01:24.4]} 34... Qxc7 {[%clk 0:02:04]} 35. Qxh7+ {[%clk 0:01:22.6]} 35... Kf8
{[%clk 0:02:03.4]} 36. Qh8+ {[%clk 0:01:16.9]} 36... Ke7 {[%clk 0:02:02.6]} 37.
Re1+ {[%clk 0:01:15.4]} 37... Kd6 {[%clk 0:01:58.8]} 38. Qf8+ {[%clk 0:01:10.8]}
38... Kc6 {[%clk 0:01:57.8]} 39. Ba4+ {[%clk 0:00:46.7]} 39... Kb7 {[%clk
0:01:55.8]} 40. Qb4+ {[%clk 0:00:44.5]} 40... Ka8 {[%clk 0:01:25.2]} 41. Qe4+
{[%clk 0:00:41.6]} 41... Ka7 {[%clk 0:01:20.9]} 42. Qe3+ {[%clk 0:00:36.4]}
42... Ka8 {[%clk 0:01:16.5]} 43. Qf3+ {[%clk 0:00:34.7]} 43... Ka7 {[%clk
0:01:10]} 44. Qe3+ {[%clk 0:00:31.7]} 44... Ka8 {[%clk 0:01:08.9]} 45. Qe4+
{[%clk 0:00:29.9]} 45... Ka7 {[%clk 0:01:07.6]} 46. Qe7 {[%clk 0:00:23.3]} 46...
Qxe7 {[%clk 0:01:05.7]} 47. Rxe7+ {[%clk 0:00:22.2]} 47... Rb7 {[%clk
0:01:05.4]} 48. Rxb7+ {[%clk 0:00:20.4]} 48... Kxb7 {[%clk 0:01:04.4]} 49. Bb3
{[%clk 0:00:19.3]} 49... f6 {[%clk 0:01:03.2]} 50. g4 {[%clk 0:00:18]} 50... Kc6
{[%clk 0:00:59.7]} 51. h4 {[%clk 0:00:17.2]} 51... Kb5 {[%clk 0:00:58.5]} 52.
Kg2 {[%clk 0:00:16.7]} 52... Kc5 {[%clk 0:00:57.4]} 53. Kf3 {[%clk 0:00:15.9]}
53... Ba3 {[%clk 0:00:56.1]} 54. Kf4 {[%clk 0:00:15.3]} 54... Kd6 {[%clk
0:00:55.5]} 55. Kf5 {[%clk 0:00:14.9]} 55... Ke7 {[%clk 0:00:54.4]} 56. Kg6
{[%clk 0:00:13]} 56... Kf8 {[%clk 0:00:53.7]} 57. h5 {[%clk 0:00:11.3]} 57...
Bb4 {[%clk 0:00:52.2]} 58. a4 {[%clk 0:00:09.8]} 58... Ba5 {[%clk 0:00:49.1]}
59. g5 {[%clk 0:00:08.2]} 59... fxg5 {[%clk 0:00:47.9]} 60. Kxg5 {[%clk
0:00:07.4]} 60... Bd2+ {[%clk 0:00:47.5]} 61. Kg6 {[%clk 0:00:06.3]} 61... Ba5
{[%clk 0:00:45.9]} 62. h6 {[%clk 0:00:05]} 62... gxh6 {[%clk 0:00:44.7]} 63.
Kxh6 {[%clk 0:00:04.3]} 63... Bd2+ {[%clk 0:00:44.6]} 64. Kh7 {[%clk 0:00:03]}
64... Ba5 {[%clk 0:00:44.5]} 0-1

[Event "Live Chess"]
[Site "Chess.com"]
[Date "2023.05.20"]
[Round "-"]
[White "JackCheetham1"]
[Black "Driftboard"]
[Result "1-0"]
[WhiteElo "1692"]
[BlackElo "683"]
[TimeControl "300"]
[EndTime "10:20:57 PDT"]
[Termination "JackCheetham1 won by checkmate"]

1. e4 {[%clk 0:04:58.7]} 1... e5 {[%clk 0:04:58.9]} 2. Nf3 {[%clk 0:04:57.5]}
2... Nc6 {[%clk 0:04:57.7]} 3. Bb5 {[%clk 0:04:57]} 3... a6 {[%clk 0:04:55.4]}
4. Ba4 {[%clk 0:04:55.9]} 4... b5 {[%clk 0:04:53.4]} 5. Bb3 {[%clk 0:04:54.2]}
5... Nf6 {[%clk 0:04:52.3]} 6. d3 {[%clk 0:04:51.8]} 6... Bc5 {[%clk 0:04:47.5]}
7. c3 {[%clk 0:04:47.4]} 7... O-O {[%clk 0:04:43.2]} 8. O-O {[%clk 0:04:45.8]}
8... a5 {[%clk 0:04:38.3]} 9. Bg5 {[%clk 0:04:35.9]} 9... h6 {[%clk 0:04:36.4]}
10. Bh4 {[%clk 0:04:34.4]} 10... a4 {[%clk 0:04:34.5]} 11. Bc2 {[%clk
0:04:33.3]} 11... b4 {[%clk 0:04:31.8]} 12. d4 {[%clk 0:04:29.1]} 12... bxc3
{[%clk 0:04:25.5]} 13. bxc3 {[%clk 0:04:29]} 13... exd4 {[%clk 0:04:23.1]} 14.
cxd4 {[%clk 0:04:18.9]} 14... Bb4 {[%clk 0:04:14.1]} 15. e5 {[%clk 0:04:13.6]}
15... Nxe5 {[%clk 0:04:05.3]} 16. dxe5 {[%clk 0:04:10.3]} 16... d6 {[%clk
0:03:54.7]} 17. exf6 {[%clk 0:03:58.7]} 17... gxf6 {[%clk 0:03:52.2]} 18. Qd3
{[%clk 0:03:57.1]} 18... Be6 {[%clk 0:03:48.2]} 19. Qh7# {[%clk 0:03:55.5]} 1-0

[Event "Live Chess"]
[Site "Chess.com"]
[Date "2023.05.20"]
[Round "-"]
[White "EdenHazard8"]
[Black "Tilbs_12"]
[Result "1-0"]
[WhiteElo "2115"]
[BlackElo "1593"]
[TimeControl "300"]
[EndTime "10:21:10 PDT"]
[Termination "EdenHazard8 won by resignation"]

1. e4 {[%clk 0:04:56.8]} 1... c6 {[%clk 0:04:58.1]} 2. d4 {[%clk 0:04:55.1]}
2... d5 {[%clk 0:04:56.5]} 3. e5 {[%clk 0:04:54.9]} 3... c5 {[%clk 0:04:55.6]}
4. dxc5 {[%clk 0:04:54.8]} 4... Nc6 {[%clk 0:04:54.8]} 5. f4 {[%clk 0:04:54.4]}
5... Bf5 {[%clk 0:04:52]} 6. c3 {[%clk 0:04:50.5]} 6... a5 {[%clk 0:04:47.2]} 7.
Be3 {[%clk 0:04:47.6]} 7... e6 {[%clk 0:04:41.8]} 8. Nf3 {[%clk 0:04:46]} 8...
Nh6 {[%clk 0:04:23.5]} 9. h3 {[%clk 0:04:42.9]} 9... Be7 {[%clk 0:04:09.3]} 10.
Bb5 {[%clk 0:04:38]} 10... Bh4+ {[%clk 0:03:52.2]} 11. Bf2 {[%clk 0:04:16.4]}
11... Bxf2+ {[%clk 0:03:46.8]} 12. Kxf2 {[%clk 0:04:16.3]} 12... Qe7 {[%clk
0:03:43.6]} 13. b4 {[%clk 0:04:13.3]} 13... O-O {[%clk 0:03:37.7]} 14. Bxc6
{[%clk 0:04:10.9]} 14... bxc6 {[%clk 0:03:36.1]} 15. a3 {[%clk 0:04:08.5]} 15...
f6 {[%clk 0:02:58.5]} 16. Re1 {[%clk 0:04:01.9]} 16... fxe5 {[%clk 0:02:35]} 17.
Nxe5 {[%clk 0:04:01.8]} 17... Qh4+ {[%clk 0:02:30.8]} 18. Kg1 {[%clk 0:03:55.8]}
18... Be4 {[%clk 0:02:20.2]} 19. Nd2 {[%clk 0:03:25.1]} 19... Qxf4 {[%clk
0:02:16.7]} 20. Nxe4 {[%clk 0:03:23.1]} 20... dxe4 {[%clk 0:02:15.5]} 21. Nxc6
{[%clk 0:03:13.3]} 21... e3 {[%clk 0:01:52.8]} 22. Qf3 {[%clk 0:02:44.5]} 22...
Qxf3 {[%clk 0:01:41.2]} 23. gxf3 {[%clk 0:02:44.4]} 23... Rxf3 {[%clk
0:01:39.3]} 24. Nxa5 {[%clk 0:02:41.2]} 24... Rxh3 {[%clk 0:01:35.3]} 25. c6
{[%clk 0:02:37.9]} 25... Nf5 {[%clk 0:01:33.4]} 26. Rad1 {[%clk 0:02:31.7]}
26... e2 {[%clk 0:01:03.5]} 27. Rxe2 {[%clk 0:02:28.1]} 27... Rxc3 {[%clk
0:01:02.6]} 28. Rxe6 {[%clk 0:02:20]} 28... Rc2 {[%clk 0:00:50.4]} 29. Rd7
{[%clk 0:01:59.3]} 29... Rc8 {[%clk 0:00:33.9]} 30. b5 {[%clk 0:01:52.8]} 30...
Kf8 {[%clk 0:00:31.5]} 31. b6 {[%clk 0:01:49.2]} 31... Ne7 {[%clk 0:00:25.3]}
32. Rexe7 {[%clk 0:01:46.1]} 32... R8xc6 {[%clk 0:00:21.7]} 33. Nxc6 {[%clk
0:01:43.7]} 33... Rxc6 {[%clk 0:00:21.4]} 34. b7 {[%clk 0:01:43.6]} 34... Rb6
{[%clk 0:00:19.1]} 35. Rf7+ {[%clk 0:01:40.9]} 35... Ke8 {[%clk 0:00:17.7]} 36.
Rde7+ {[%clk 0:01:39.7]} 1-0